bitfinex-derivatives/quotes_BTCF0:USTF0_20251202
["timestamp","ask_amount","ask_price","bid_price","bid_amount"]
[1764707471636,0.0109683,91155.0,91154.0,0.67601]
[1764707471832,0.3717683,91155.0,91154.0,0.67601]
[1764707472134,0.3717683,91155.0,91154.0,1.07601]
[1764707472334,0.3717683,91155.0,91154.0,0.79601]
[1764707472532,1.0487883,91155.0,91154.0,0.34042]
[1764707473034,1.0487883,91155.0,91154.0,0.74042]
[1764707473237,0.3507783,91155.0,91154.0,1.06601]
[1764707473432,0.0109683,91155.0,91154.0,1.06601]
[1764707473732,0.0109683,91155.0,91154.0,0.74701]
[1764707474038,0.0109683,91155.0,91154.0,0.98701]
[1764707474240,0.0109683,91155.0,91154.0,0.67701]
[1764707474736,0.0109683,91155.0,91154.0,1.04701]
[1764707475532,0.6879883,91155.0,91154.0,0.67701]
[1764707476343,0.3507783,91155.0,91154.0,0.67701]
[1764707476731,0.6879883,91155.0,91154.0,0.67701]
[1764707476935,0.67702,91146.0,91145.0,0.00016456]
[1764707477338,0.67702,91146.0,91145.0,1.05617456]
[1764707477532,0.3608,91155.0,91148.0,0.67601]
[1764707477733,0.3608,91155.0,91148.0,1.07601]
[1764707477929,0.6879884,91154.0,91153.0,0.34042]
[1764707478242,0.0109694,91146.0,91145.0,0.67717456]
[1764707478539,0.010969,91150.0,91145.0,0.43213406]
[1764707478735,0.3608,91155.0,91145.0,0.43213406]
[1764707478736,0.3717683,91155.0,91154.0,0.34042]
[1764707478934,1.0487883,91155.0,91154.0,0.34042]
[1764707479137,0.0109694,91146.0,91145.0,1.20033456]
[1764707479330,0.0109694,91146.0,91145.0,1.61033456]
[1764707479743,0.0109694,91146.0,91145.0,1.60733456]
[1764707480143,0.3608,91155.0,91145.0,1.60733456]
[1764707480144,0.010969,91150.0,91145.0,0.93132456]
[1764707480344,0.003,91146.0,91145.0,0.93132456]
[1764707480547,0.003,91146.0,91145.0,1.60733456]
[1764707480743,0.003,91146.0,91145.0,1.97910406]
[1764707481238,0.003,91146.0,91145.0,1.96813456]
[1764707481453,0.004,91146.0,91145.0,1.96813456]
[1764707482248,0.002,91146.0,91145.0,1.96813456]
[1764707482832,0.0109692,91148.0,91147.0,0.67601]
[1764707483036,0.0109692,91148.0,91147.0,1.07601]
[1764707483939,0.0129692,91148.0,91147.0,1.07601]
[1764707484341,0.002,91148.0,91147.0,1.07601]
[1764707485351,0.003,91148.0,91147.0,1.07601]
[1764707486151,0.001,91148.0,91147.0,1.07601]
[1764707486447,0.003,91148.0,91147.0,1.07601]
[1764707486848,0.002,91148.0,91147.0,1.07601]
[1764707487044,0.003,91148.0,91147.0,1.07601]
[1764707487638,0.0109675,91162.0,91161.0,0.67601]
[1764707487842,0.0109675,91162.0,91161.0,1.19621]
[1764707489240,0.0139675,91162.0,91161.0,1.19621]
[1764707489643,0.0109675,91162.0,91161.0,1.19621]
[1764707489849,0.0139675,91162.0,91161.0,1.19621]
[1764707490447,0.003,91162.0,91161.0,1.19621]
[1764707490658,0.003,91162.0,91161.0,1.94701]
[1764707490954,0.004,91162.0,91161.0,1.94701]
[1764707491857,0.0109693,91147.0,91146.0,0.88615]
[1764707492045,0.0109693,91147.0,91146.0,1.19577]
[1764707492046,0.6879893,91147.0,91146.0,1.19577]
[1764707493850,0.8071,91146.0,91131.0,0.3608]
[1764707494152,0.6833011,91132.0,91131.0,0.35532]
[1764707494852,0.6833011,91132.0,91131.0,0.68411]
[1764707495952,0.6833011,91132.0,91131.0,0.68511]
[1764707496358,0.6833011,91132.0,91131.0,1.10511]
[1764707496543,0.0109711,91132.0,91131.0,1.10511]
[1764707497259,0.0109711,91132.0,91131.0,1.10411]
[1764707497447,0.0119711,91132.0,91131.0,1.10411]
[1764707497956,0.001,91132.0,91131.0,1.10411]
[1764707498157,0.001,91132.0,91131.0,1.10511]
[1764707499166,0.004,91132.0,91131.0,1.10411]
[1764707499657,0.010971,91133.0,91131.0,1.08411]
[1764707499958,0.002,91132.0,91131.0,1.08411]
[1764707500254,0.69581,91132.0,91131.0,0.68411]
[1764707500444,0.69481,91132.0,91131.0,1.20355]
[1764707500649,0.71599577,91132.0,91131.0,1.60306696]
[1764707500853,0.71599577,91132.0,91131.0,0.67362696]
[1764707501047,0.71599577,91132.0,91122.0,0.00016456]
[1764707501048,0.7047821,91123.0,91122.0,0.70931456]
[1764707501256,1.40039066,91123.0,91122.0,6e-08]
[1764707501450,0.7047854,91096.0,91095.0,0.70926738]
[1764707501654,0.7047854,91096.0,91095.0,0.35749738]
[1764707502354,0.7047854,91096.0,91095.0,0.70926738]
[1764707502551,0.0109754,91096.0,91095.0,0.70926738]
[1764707502751,0.0139754,91096.0,91095.0,0.70926738]
[1764707503158,0.3517854,91096.0,91095.0,0.70926738]
[1764707503460,0.34081,91096.0,91095.0,1.07326738]
[1764707503660,0.0109753,91097.0,91096.0,0.70915]
[1764707503857,0.3717753,91097.0,91096.0,1.13915]
[1764707504058,0.0109753,91097.0,91096.0,1.13915]
[1764707505062,0.69381,91096.0,91095.0,0.00011738]
[1764707506856,0.69381,91096.0,91095.0,0.00111738]
[1764707507059,0.69381,91096.0,91095.0,0.35849738]
[1764707507259,0.002,91097.0,91096.0,0.7201254]
[1764707507566,0.01113896,91105.0,91104.0,0.70915]
[1764707508162,0.7047852,91098.0,91097.0,0.35738]
[1764707508658,0.7047852,91098.0,91095.0,0.00611738]
[1764707508659,0.69381,91096.0,91095.0,0.00111738]
[1764707508965,0.7047865,91087.0,91070.0,0.20877]
[1764707509159,1.0655865,91087.0,91070.0,0.21811706]
[1764707509464,0.0109784,91071.0,91070.0,0.92726706]
[1764707509665,0.0109784,91071.0,91070.0,1.29726706]
[1764707509864,0.01109578,91071.0,91070.0,1.29726706]
[1764707510163,0.01109578,91071.0,91070.0,1.28792]
[1764707510362,0.70490578,91071.0,91060.0,0.3608]
[1764707510558,0.0109796,91061.0,91060.0,0.72915]
[1764707510865,0.7047896,91061.0,91060.0,0.72915]
[1764707511358,0.00011738,91071.0,91067.0,0.70915]
[1764707511664,0.69392738,91071.0,91070.0,0.70915]
[1764707511865,0.69392738,91071.0,91070.0,0.92915]
[1764707512169,0.69392738,91071.0,91070.0,0.70915]
[1764707512753,0.0109792,91065.0,91061.0,0.0109795]
[1764707513055,0.70490578,91071.0,91070.0,0.001]
[1764707513462,0.70490578,91071.0,91070.0,0.35838]
[1764707513666,0.70490578,91071.0,91070.0,0.71215]
[1764707513967,0.00011738,91071.0,91070.0,1.11215]
[1764707514259,0.00011738,91071.0,91070.0,1.11415]
[1764707514663,0.00011738,91071.0,91070.0,1.47495]
[1764707514867,0.00111738,91071.0,91070.0,1.46995]
[1764707515359,0.00011738,91071.0,91070.0,1.46995]
[1764707515564,0.00111738,91071.0,91070.0,1.46995]
[1764707515766,0.00211738,91071.0,91070.0,1.46995]
[1764707516865,0.00016466,91075.0,91074.0,0.70915]
[1764707517454,0.01114256,91075.0,91074.0,0.70915]
[1764707518070,0.01314256,91075.0,91074.0,0.70915]
[1764707518265,0.35395256,91075.0,91074.0,0.70915]
[1764707518468,0.01314256,91075.0,91074.0,0.70915]
[1764707518764,0.01414256,91075.0,91074.0,0.70915]
[1764707518957,0.3608,91102.0,91074.0,0.7908]
[1764707519160,0.3717747,91102.0,91101.0,0.70915]
[1764707519954,0.3727747,91102.0,91101.0,0.70915]
[1764707520254,0.3737747,91102.0,91101.0,0.70915]
[1764707520559,0.7145847,91102.0,91101.0,0.70915]
[1764707520756,0.001,91102.0,91101.0,1.08115]
[1764707520956,0.001,91102.0,91101.0,1.44195]
[1764707521156,0.0008353,91102.0,91101.0,1.44195]
[1764707521769,0.00016466,91111.0,91110.0,0.70915]
[1764707522076,0.00016466,91111.0,91110.0,1.10915]
[1764707523370,0.00116466,91111.0,91110.0,1.10915]
[1764707523763,0.00216466,91111.0,91110.0,1.10915]
[1764707527572,0.00216466,91111.0,91110.0,1.30751]
[1764707529763,0.01124615,91126.0,91125.0,0.68975]
[1764707530073,0.01124615,91126.0,91125.0,1.06975]
[1764707530561,0.00027435,91126.0,91125.0,1.0807219]
[1764707530761,0.00027435,91126.0,91125.0,1.06975]
[1764707530962,0.00027435,91126.0,91125.0,1.08412875]
[1764707531164,0.00027435,91126.0,91125.0,1.13412875]
[1764707535672,0.00027435,91126.0,91125.0,1.33248875]
[1764707537575,0.00027435,91126.0,91125.0,1.32311]
[1764707538873,0.01124615,91126.0,91125.0,1.32311]
[1764707539372,0.01124615,91126.0,91125.0,1.33435614]
[1764707539877,0.01124615,91126.0,91125.0,1.32311]
[1764707540468,0.01124615,91126.0,91125.0,0.005]
[1764707540469,1.03773615,91126.0,91125.0,0.005]
[1764707540669,1.03773615,91126.0,91125.0,1.25311]
[1764707540874,0.37204615,91126.0,91125.0,1.25311]
[1764707546582,0.69703615,91126.0,91125.0,1.25311]
[1764707546784,1.03773615,91126.0,91125.0,0.005]
[1764707547677,1.03773615,91126.0,91125.0,0.35385]
[1764707548373,1.06254095,91126.0,91125.0,0.35385]
[1764707548581,1.06254095,91126.0,91125.0,0.005]
[1764707549882,1.06254095,91126.0,91125.0,0.69475]
[1764707551489,0.39685095,91126.0,91125.0,1.0957219]
[1764707551790,0.36096466,91135.0,91125.0,1.0957219]
[1764707551791,0.00016466,91135.0,91134.0,0.8990808]
[1764707551982,0.00016466,91135.0,91134.0,1.2890808]
[1764707552690,0.3608,91144.0,91143.0,0.8828397]
[1764707552883,0.3717686,91153.0,91152.0,0.87187]
[1764707553083,0.39659528,91153.0,91152.0,1.27187]
[1764707553281,0.3717686,91153.0,91152.0,1.27187]
[1764707554384,0.3717686,91153.0,91152.0,1.27287]
[1764707554983,0.3608,91153.0,91152.0,1.2838387]
[1764707555187,0.3608,91153.0,91152.0,1.27287]
[1764707556092,0.3608,91153.0,91152.0,1.27687]
[1764707556501,1.04525457,91162.0,91161.0,0.67691]
[1764707556795,0.39672423,91162.0,91161.0,0.87252]
[1764707557294,1.08101423,91162.0,91161.0,0.67691]
[1764707557697,1.08101423,91162.0,91161.0,0.68091]
[1764707563201,1.05622207,91162.0,91161.0,0.68091]
[1764707563789,0.8897096,91144.0,91143.0,7e-08]
[1764707564014,0.8897096,91144.0,91134.0,0.67691]
[1764707564015,0.3423608,91135.0,91134.0,0.67691]
[1764707564303,0.3423601,91140.0,91139.0,0.67691]
[1764707564505,0.3423601,91140.0,91139.0,1.08691]
[1764707564804,0.6952601,91140.0,91139.0,1.08691]
[1764707564993,0.6952601,91140.0,91139.0,0.34966]
[1764707565194,0.0109706,91136.0,91132.0,0.0109711]
[1764707565400,0.8907097,91144.0,91143.0,0.67691]
[1764707565604,0.001,91144.0,91143.0,1.09691]
[1764707565995,0.6962596,91144.0,91143.0,0.67691]
[1764707566295,0.6962596,91144.0,91139.0,0.001]
[1764707566296,0.6952601,91140.0,91139.0,0.35066]
[1764707566495,0.6952601,91140.0,91139.0,0.67791]
[1764707567502,0.6952601,91140.0,91139.0,0.67691]
[1764707568004,0.0139697,91144.0,91143.0,0.67691]
[1764707568307,0.0109697,91144.0,91143.0,1.10691]
[1764707569200,0.001,91144.0,91143.0,1.1178797]
[1764707569406,0.001,91144.0,91143.0,1.4786797]
[1764707570102,0.001,91144.0,91143.0,1.46771]
[1764707570297,0.68529,91144.0,91143.0,0.95691]
[1764707570495,0.68529,91144.0,91143.0,1.07691]
[1764707570696,0.68829,91144.0,91143.0,1.07691]
[1764707571300,0.6992596,91144.0,91143.0,1.07691]
[1764707572307,0.6992596,91144.0,91143.0,0.94691]
[1764707573995,0.6952612,91131.0,91130.0,0.34982457]
[1764707574296,1.0560612,91131.0,91130.0,0.00016457]
[1764707575412,1.0560612,91131.0,91117.0,0.5296528]
[1764707575413,0.0109727,91119.0,91117.0,0.5296528]
[1764707575713,0.0109727,91119.0,91117.0,0.8896528]
[1764707575714,0.68429,91118.0,91117.0,0.8896528]
[1764707576313,0.68429,91118.0,91117.0,1.2393128]
[1764707577308,0.68429,91118.0,91117.0,1.0478828]
[1764707577617,0.68729,91118.0,91117.0,0.74691]
[1764707577916,1.04809,91118.0,91117.0,0.96691]
[1764707578108,1.04509,91118.0,91117.0,0.96691]
[1764707578308,1.04809,91118.0,91117.0,0.96691]
[1764707578818,1.04909,91118.0,91117.0,0.96691]
[1764707580013,1.04909,91118.0,91117.0,0.71691]
[1764707580313,0.0109738,91109.0,91108.0,0.00016457]
[1764707580513,0.0109738,91109.0,91094.0,0.0114955]
[1764707580514,0.68429,91095.0,91094.0,0.0114955]
[1764707580814,0.68429,91093.0,91081.0,0.0109772]
[1764707581119,0.68429,91093.0,91092.0,0.35007954]
[1764707581307,1.04509,91093.0,91092.0,0.35007954]
[1764707581503,0.68429,91093.0,91092.0,1.03804239]
[1764707581714,0.87874,91098.0,91097.0,0.67691]
[1764707582414,0.68429,91093.0,91092.0,0.00107954]
[1764707582607,0.68429,91093.0,91092.0,0.39107954]
[1764707583212,0.68429,91093.0,91092.0,0.39507954]
[1764707583413,0.68429,91093.0,91092.0,1.09023954]
[1764707583612,0.68429,91093.0,91092.0,1.08523954]
[1764707584514,0.68529,91093.0,91092.0,1.08923954]
[1764707584917,0.68529,91093.0,91092.0,1.08523954]
[1764707585209,0.68429,91093.0,91092.0,1.08523954]
[1764707586617,0.68729,91093.0,91092.0,1.08523954]
[1764707587006,0.68429,91093.0,91092.0,1.08523954]
[1764707587710,0.68529,91093.0,91092.0,1.08523954]
[1764707588018,0.68829,91093.0,91092.0,1.08523954]
[1764707588411,0.68729,91093.0,91092.0,1.08523954]
[1764707588613,0.004,91093.0,91092.0,1.08523954]
[1764707590018,0.003,91093.0,91092.0,1.08523954]
[1764707590218,1.2563052,91098.0,91097.0,0.68284]
[1764707590421,1.2563052,91098.0,91097.0,1.04284]
[1764707591113,0.71721,91098.0,91097.0,1.04284]
[1764707591415,0.00016466,91102.0,91101.0,0.6938148]
[1764707591720,0.00016466,91102.0,91101.0,1.0538148]
[1764707592610,0.00016466,91102.0,91101.0,1.1538148]
[1764707592816,0.00016466,91102.0,91101.0,1.0538148]
[1764707593022,1.04318,91119.0,91118.0,0.68284]
[1764707593320,1.0541526,91119.0,91118.0,1.04284]
[1764707593615,1.0541526,91119.0,91118.0,0.68284]
[1764707593914,0.6933526,91119.0,91118.0,0.07]
[1764707594115,0.68238,91105.0,91104.0,0.69814]
[1764707594317,0.68238,91097.0,91096.0,0.69814]
[1764707594622,0.67774335,91096.0,91095.0,0.00016466]
[1764707596620,0.67774335,91096.0,91095.0,0.00316466]
[1764707596820,0.67774335,91096.0,91095.0,0.00416466]
[1764707597022,0.68238,91093.0,91086.0,0.01147696]
[1764707597227,1.04318,91093.0,91086.0,0.01147696]
[1764707598118,1.04318,91093.0,91087.0,0.0109764]
[1764707598428,1.04318,91093.0,91092.0,0.00107954]
[1764707599129,1.04318,91093.0,91092.0,0.00307954]
[1764707599629,1.04318,91093.0,91092.0,7.954e-05]
[1764707599829,1.04318,91093.0,91092.0,0.00407954]
[1764707600225,1.04318,91093.0,91092.0,0.00107954]
[1764707600426,1.04318,91093.0,91092.0,0.00407954]
[1764707600625,1.04318,91093.0,91092.0,0.00307954]
[1764707600825,1.04418,91093.0,91092.0,7.954e-05]
[1764707602252,1.04318,91093.0,91092.0,7.954e-05]
[1764707602451,1.04318,91093.0,91092.0,0.00307954]
[1764707602649,1.04318,91093.0,91092.0,0.00407954]
[1764707603048,1.04418,91093.0,91092.0,0.00107954]
[1764707603252,1.04418,91093.0,91092.0,0.69389544]
[1764707603253,0.68338,91093.0,91092.0,0.69389544]
[1764707603453,0.68238,91093.0,91092.0,0.69389544]
[1764707603650,0.68338,91093.0,91092.0,0.68291954]
[1764707605451,0.68738,91093.0,91092.0,0.68291954]
[1764707606142,0.68838,91093.0,91092.0,0.68291954]
[1764707607448,0.68838,91093.0,91092.0,7.954e-05]
[1764707607853,1.04918,91093.0,91092.0,7.954e-05]
[1764707609645,0.6933576,91078.0,91077.0,0.3608]
[1764707609962,0.6933576,91078.0,91063.0,0.33734]
[1764707609963,0.8955093,91064.0,91063.0,0.33734]
[1764707610171,0.8955093,91064.0,91063.0,0.46734]
[1764707610459,0.8955093,91064.0,91063.0,0.71734]
[1764707610760,0.89558884,91064.0,91063.0,0.71734]
[1764707610960,0.89558884,91064.0,91063.0,1.0738194]
[1764707610961,0.88460954,91064.0,91063.0,1.0738194]
[1764707612460,0.88460954,91064.0,91063.0,1.08616129]
[1764707612954,0.88660954,91064.0,91063.0,1.08616129]
[1764707613662,0.68445954,91064.0,91063.0,1.08616129]
[1764707614060,0.00207954,91064.0,91063.0,1.08616129]
[1764707614457,0.33858954,91064.0,91063.0,1.08616129]
[1764707614662,0.69724954,91064.0,91063.0,1.08616129]
[1764707615963,0.00207954,91064.0,91063.0,1.08616129]
[1764707616258,0.33858954,91064.0,91063.0,1.08616129]
[1764707616463,0.90280954,91064.0,91063.0,1.07518189]
[1764707620058,0.69724954,91064.0,91063.0,1.07518189]
[1764707621363,0.00207954,91064.0,91063.0,1.07518189]
[1764707621659,0.33858954,91064.0,91063.0,1.07518189]
[1764707621864,0.90280954,91064.0,91063.0,1.07518189]
[1764707625559,0.00207954,91064.0,91063.0,1.07518189]
[1764707625762,0.00207954,91064.0,91063.0,1.29975189]
[1764707627669,0.33667466,91073.0,91072.0,0.683]
[1764707627975,0.72059,91088.0,91072.0,0.683]
[1764707627976,0.89732,91088.0,91087.0,0.6939765]
[1764707628172,0.89732,91088.0,91087.0,1.1239765]
[1764707628380,0.33651,91088.0,91087.0,1.1239765]
[1764707628976,0.69517,91088.0,91087.0,1.1239765]
[1764707629560,0.69517,91088.0,91087.0,1.1259765]
[1764707630579,0.69517,91088.0,91087.0,1.1269765]
[1764707631372,0.00016466,91097.0,91087.0,1.1269765]
[1764707631561,0.69533466,91097.0,91096.0,0.6939754]
[1764707631765,0.00016466,91097.0,91096.0,1.9831354]
[1764707632075,0.90073,91112.0,91111.0,0.683]
[1764707632275,0.90073,91112.0,91111.0,1.093]
[1764707633075,0.90073,91112.0,91111.0,1.10526643]
[1764707633275,0.69517,91112.0,91111.0,1.10526643]
[1764707633576,1.05597,91117.0,91116.0,0.693973]
[1764707633775,1.05597,91117.0,91116.0,1.632293]
[1764707634679,1.05897,91117.0,91116.0,1.632293]
[1764707635267,1.05997,91117.0,91116.0,1.632293]
[1764707635477,1.05997,91117.0,91116.0,1.62132]
[1764707635776,1.05997,91117.0,91116.0,0.88828]
[1764707636078,1.05997,91117.0,91116.0,1.22797]
[1764707636574,0.004,91117.0,91116.0,1.238943]
[1764707636884,0.0019148,91117.0,91116.0,1.238943]
[1764707637863,0.0019148,91117.0,91116.0,1.338943]
[1764707638874,0.6970848,91117.0,91116.0,1.338943]
[1764707639066,0.6970848,91117.0,91116.0,1.238943]
[1764707639265,0.6970848,91117.0,91116.0,0.88812]
[1764707639675,0.6970848,91117.0,91116.0,1.22781]
[1764707640287,0.00016466,91121.0,91120.0,0.683]
[1764707640575,0.69731,91137.0,91136.0,0.6939706]
[1764707640772,0.90073,91144.0,91143.0,0.6939697]
[1764707641076,0.90073,91144.0,91143.0,1.0839697]
[1764707641672,0.69517,91149.0,91143.0,0.90808]
[1764707641874,0.90073,91152.0,91151.0,0.33969]
[1764707642079,0.00016466,91153.0,91152.0,0.683]
[1764707642379,0.00016466,91153.0,91152.0,1.063]
[1764707642578,0.69517,91144.0,91143.0,0.001]
[1764707642775,0.69517,91144.0,91143.0,0.88904]
[1764707643080,0.69517,91144.0,91143.0,1.2348]
[1764707643472,0.69517,91144.0,91143.0,1.2338]
[1764707643675,0.69517,91144.0,91143.0,1.2328]
[1764707644272,0.69617,91144.0,91143.0,1.2328]
[1764707645971,0.33751,91144.0,91143.0,1.2328]
[1764707646173,0.001,91144.0,91143.0,1.2328]
[1764707646373,0.67984,91144.0,91143.0,1.2328]
[1764707646786,0.67984,91144.0,91143.0,0.88804]
[1764707647467,0.67984,91144.0,91143.0,1.2328]
[1764707647670,0.67984,91144.0,91139.0,0.3608]
[1764707647870,0.34258,91104.0,91103.0,0.70002]
[1764707648085,0.0109731,91115.0,91103.0,1.12002]
[1764707648375,0.67884,91122.0,91121.0,0.70002]
[1764707648581,0.0109725,91120.0,91116.0,0.20613]
[1764707648804,0.3608,91121.0,91120.0,0.70002]
[1764707649084,0.00016457,91127.0,91126.0,0.70002]
[1764707649276,0.00016457,91127.0,91126.0,1.1409918]
[1764707649472,0.01113627,91127.0,91126.0,1.13002]
[1764707650380,0.00216457,91127.0,91126.0,1.13002]
[1764707651170,0.00016457,91127.0,91126.0,1.13002]
[1764707651371,0.00116457,91127.0,91126.0,1.13002]
[1764707653783,0.00116457,91127.0,91116.0,0.20613]
[1764707653784,0.6898129,91117.0,91116.0,0.70002]
[1764707653979,0.6898129,91117.0,91090.0,0.3750092]
[1764707653980,0.8957337,91110.0,91090.0,0.16973]
[1764707654278,0.6898148,91101.0,91100.0,0.5062]
[1764707654489,1.0506148,91101.0,91100.0,0.8762]
[1764707654675,1.0506148,91101.0,91100.0,1.22096]
[1764707655170,0.70338,91101.0,91100.0,1.22096]
[1764707655382,0.3608,91101.0,91100.0,1.22096]
[1764707655776,0.3717748,91101.0,91100.0,1.22096]
[1764707655977,0.70338,91110.0,91109.0,0.70002]
[1764707656174,1.03964,91110.0,91109.0,1.13002]
[1764707656375,1.03964,91110.0,91109.0,0.81002]
[1764707656575,1.03964,91110.0,91109.0,0.45476]
[1764707656981,1.04164,91110.0,91109.0,0.71476]
[1764707658384,1.04264,91110.0,91109.0,0.71476]
[1764707661176,1.04264,91110.0,91109.0,1.07002]
[1764707662178,1.04264,91110.0,91109.0,0.83002]
[1764707667475,1.04264,91110.0,91109.0,1.09002]
[1764707667680,1.04264,91110.0,91109.0,0.83002]
[1764707668892,1.04264,91110.0,91103.0,0.5287345]
[1764707668893,0.8957344,91104.0,91103.0,0.86252]
[1764707669081,1.2565344,91104.0,91103.0,1.00252]
[1764707669392,1.2565344,91104.0,91103.0,0.86252]
[1764707669589,1.0506144,91104.0,91103.0,1.27252]
[1764707669798,1.03964,91104.0,91103.0,1.27252]
[1764707670186,0.3608,91104.0,91103.0,1.27252]
[1764707670395,0.002,91110.0,91109.0,0.7109938]
[1764707670593,0.002,91110.0,91109.0,1.1209938]
[1764707670901,0.002,91110.0,91109.0,1.2209938]
[1764707671088,0.3608,91113.0,91112.0,0.9171235]
[1764707671396,0.3608,91113.0,91112.0,1.8047635]
[1764707672499,0.3618,91113.0,91112.0,1.8047635]
[1764707672808,0.3608,91113.0,91112.0,1.8047635]
[1764707673094,0.3618,91113.0,91112.0,1.8047635]
[1764707675588,0.001,91113.0,91112.0,1.8047635]
[1764707675896,0.0008354,91113.0,91112.0,1.8047635]
[1764707676097,0.3608,91121.0,91120.0,0.8790125]
[1764707676288,0.3608,91121.0,91120.0,1.7765725]
[1764707677392,0.3608,91121.0,91120.0,1.8765725]
[1764707677691,0.0109708,91134.0,91126.0,0.6788118]
[1764707677891,0.0109708,91134.0,91126.0,1.5963318]
[1764707678395,0.3608,91139.0,91126.0,1.58536]
[1764707678597,0.66566457,91127.0,91126.0,1.06784]
[1764707678799,0.66566457,91127.0,91126.0,0.88784]
[1764707680502,0.66766457,91127.0,91126.0,0.88784]
[1764707681096,0.66866457,91127.0,91126.0,0.88784]
[1764707683095,0.66666457,91127.0,91126.0,0.88784]
[1764707683295,0.66766457,91127.0,91126.0,0.88784]
[1764707683807,0.66866457,91127.0,91126.0,0.88784]
[1764707684193,0.6655,91125.0,91124.0,0.51748]
[1764707685599,0.8838135,91112.0,91111.0,0.66800457]
[1764707685806,0.8838135,91112.0,91111.0,1.49540457]
[1764707686000,0.8838135,91112.0,91111.0,0.82756457]
[1764707686200,0.8838135,91112.0,91111.0,0.00016457]
[1764707686201,1.2446135,91112.0,91111.0,0.00016457]
[1764707687005,1.2456135,91112.0,91111.0,0.00016457]
[1764707687206,1.2456135,91112.0,91091.0,0.3608]
[1764707687207,0.6655,91071.0,91070.0,0.0780434]
[1764707687503,0.6655,91071.0,91062.0,0.3608]
[1764707687504,0.6764794,91063.0,91062.0,0.66784]
[1764707687816,0.6764794,91063.0,91062.0,1.01784]
[1764707688104,0.6764794,91063.0,91062.0,0.01231549]
[1764707688291,0.6764794,91063.0,91055.0,0.85845]
[1764707688292,0.6764802,91056.0,91055.0,0.85845]
[1764707688496,0.6655,91054.0,91053.0,0.00016466]
[1764707688700,1.0263,91054.0,91053.0,0.00016466]
[1764707690112,1.0263,91054.0,91053.0,0.00116466]
[1764707692108,1.0263,91054.0,91053.0,0.34225466]
[1764707692301,1.0263,91054.0,91053.0,1.02900466]
[1764707695010,0.69375,91054.0,91053.0,1.02900466]
[1764707696104,0.3608,91062.0,91058.0,0.0109799]
[1764707696413,1.0263,91062.0,91061.0,0.66784]
[1764707696601,1.0263,91062.0,91061.0,1.04784]
[1764707696602,0.3608,91062.0,91061.0,1.04784]
[1764707696796,8.228e-05,91063.0,91062.0,0.8772295]
[1764707697110,8.228e-05,91063.0,91062.0,1.6180295]
[1764707698113,8.228e-05,91063.0,91062.0,1.7180295]
[1764707698607,8.228e-05,91063.0,91062.0,1.6180295]
[1764707699213,8.228e-05,91063.0,91062.0,1.6190295]
[1764707699709,8.228e-05,91063.0,91062.0,2.1355495]
[1764707700007,8.228e-05,91063.0,91062.0,2.1365495]
[1764707700411,0.00016466,91072.0,91071.0,0.6788184]
[1764707700608,0.00016466,91072.0,91071.0,1.9670984]
[1764707701408,0.0002055,91072.0,91071.0,1.9670984]
[1764707701610,0.20734,91098.0,91071.0,1.9670984]
[1764707701611,0.20734,91098.0,91091.0,0.66784]
[1764707701906,0.33295,91098.0,91097.0,0.6788153]
[1764707702102,0.33295,91098.0,91097.0,1.0788153]
[1764707702297,0.6655,91098.0,91097.0,0.66784]
[1764707702513,0.20734,91098.0,91091.0,0.51748]
[1764707702825,0.6764759,91092.0,91091.0,0.80748]
[1764707703006,0.6764759,91092.0,91085.0,0.00016466]
[1764707703007,0.6974966,91086.0,91085.0,0.00016466]
[1764707703208,1.0582966,91086.0,91085.0,0.00016466]
[1764707703911,0.68652,91086.0,91085.0,0.32658466]
[1764707704208,0.68652,91086.0,91085.0,1.08024466]
[1764707705305,0.68752,91086.0,91085.0,1.08024466]
[1764707707012,0.68752,91086.0,91085.0,1.44104466]
[1764707707310,0.001,91086.0,91085.0,1.44104466]
[1764707707499,0.001,91086.0,91085.0,2.05844466]
[1764707708097,0.68668466,91104.0,91103.0,0.32642]
[1764707709006,0.68668466,91104.0,91096.0,0.3608]
[1764707709007,0.6974953,91097.0,91096.0,1.04088]
[1764707709306,0.6974953,91097.0,91096.0,1.41088]
[1764707710115,0.68652,91097.0,91096.0,1.41088]
[1764707711209,0.68752,91097.0,91096.0,1.41088]
[1764707711412,0.68852,91097.0,91096.0,1.41088]
[1764707711811,0.002,91097.0,91096.0,1.41088]
[1764707712214,0.34947466,91104.0,91103.0,0.68008]
[1764707712416,0.68668466,91104.0,91103.0,1.03008]
[1764707714011,0.68668466,91104.0,91103.0,0.35]
[1764707714208,0.6974953,91097.0,91096.0,0.3608]
[1764707714413,0.6974953,91097.0,91096.0,0.6908]
[1764707714814,0.6974953,91097.0,91096.0,0.65642]
[1764707715720,0.6984953,91097.0,91096.0,0.65642]
[1764707716018,0.6994953,91097.0,91096.0,0.65642]
[1764707716609,0.6994953,91097.0,91096.0,1.0210554]
[1764707716909,0.6994953,91097.0,91095.0,0.51728]
[1764707716910,0.19515,91070.0,91057.0,0.0109801]
[1764707717107,0.6974996,91062.0,91061.0,0.68008]
[1764707717308,0.3602905,91054.0,91053.0,0.68008]
[1764707717508,0.0109805,91054.0,91053.0,0.78008]
[1764707717709,0.7325805,91054.0,91053.0,0.78008]
[1764707717911,0.7216,91054.0,91053.0,0.7910606]
[1764707718120,0.7216,91054.0,91053.0,0.78008]
[1764707719124,0.7216,91054.0,91053.0,0.78208]
[1764707720626,0.7216,91054.0,91053.0,0.68208]
[1764707721828,1.07091,91054.0,91053.0,0.68208]
[1764707722223,1.0818905,91054.0,91053.0,0.68208]
[1764707722931,1.07091,91054.0,91053.0,0.6930606]
[1764707724416,1.0818905,91054.0,91053.0,0.68208]
[1764707724617,0.7216,91054.0,91053.0,0.8796]
[1764707724817,1.07091,91054.0,91053.0,0.68208]
[1764707725339,1.07091,91054.0,91053.0,0.002]
[1764707725626,0.68652,91047.0,91043.0,0.5172]
[1764707725826,0.6975013,91047.0,91043.0,0.5172]
[1764707726327,0.33721,91023.0,91022.0,0.68008]
[1764707726528,1.04732,91023.0,91022.0,1.19728]
[1764707726727,0.68652,91021.0,91020.0,8.412e-05]
[1764707727028,0.68652,91007.0,91006.0,0.32669471]